[Event "Titled Tuesday Blitz May 31 Early 2022"]
[White "Ramirez Vido, Robert Yorisan"]
[Black "Omelja, Artem"]
[WhiteFideId "3513823"]
[BlackFideId "14119846"]
[WhiteElo "2402"]
[BlackElo "2382"]
[Result "1/2-1/2"]
[Round "08"]
[TimeControl "180+1"]
[Date "2022.06.01"]
[WhiteClock "0:00:10"]
[BlackClock "0:00:06"]

1. c4 {[%clk 0:03:00]}  c6 {[%clk 0:02:57]} 2. g3 {[%clk 0:02:57]}  d5 {[%clk 0:02:48]} 3. cxd5 {[%clk 0:02:58]}  cxd5 {[%clk 0:02:48]} 4. Bg2 {[%clk 0:02:58]}  Nf6 {[%clk 0:02:42]} 5. Nf3 {[%clk 0:02:58]}  Nc6 {[%clk 0:02:41]} 6. d4 {[%clk 0:02:56]}  Bf5 {[%clk 0:02:40]} 7. O-O {[%clk 0:02:55]}  e6 {[%clk 0:02:40]} 8. Bf4 {[%clk 0:02:52]}  h6 {[%clk 0:02:38]} 9. Nc3 {[%clk 0:02:52]}  Qb6 {[%clk 0:02:31]} 10. Na4 {[%clk 0:02:45]}  Qb5 {[%clk 0:02:23]} 11. Rc1 {[%clk 0:02:39]}  Be7 {[%clk 0:02:18]} 12. b3 {[%clk 0:02:34]}  O-O {[%clk 0:02:14]} 13. Nc5 {[%clk 0:02:22]}  Bxc5 {[%clk 0:02:04]} 14. Rxc5 {[%clk 0:02:21]}  Qa6 {[%clk 0:02:04]} 15. Ne5 {[%clk 0:01:39]}  Qxa2 {[%clk 0:01:29]} 16. Nxc6 {[%clk 0:01:31]}  bxc6 {[%clk 0:01:30]} 17. Rxc6 {[%clk 0:01:31]}  Rfc8 {[%clk 0:01:14]} 18. Qc1 {[%clk 0:01:28]}  Rxc6 {[%clk 0:01:10]} 19. Qxc6 {[%clk 0:01:29]}  Rd8 {[%clk 0:01:06]} 20. Qa4 {[%clk 0:01:09]}  Qxa4 {[%clk 0:00:31]} 21. bxa4 {[%clk 0:01:10]}  Rc8 {[%clk 0:00:32]} 22. Rc1 {[%clk 0:01:07]}  Rxc1+ {[%clk 0:00:31]} 23. Bxc1 {[%clk 0:01:08]}  Ne8 {[%clk 0:00:24]} 24. Bf4 {[%clk 0:01:00]}  g5 {[%clk 0:00:18]} 25. Bb8 {[%clk 0:01:01]}  a6 {[%clk 0:00:17]} 26. e3 {[%clk 0:00:59]}  a5 {[%clk 0:00:14]} 27. Bf1 {[%clk 0:00:58]}  f6 {[%clk 0:00:12]} 28. Bb5 {[%clk 0:00:58]}  Kf7 {[%clk 0:00:12]} 29. Ba7 {[%clk 0:00:52]}  Nd6 {[%clk 0:00:12]} 30. Bc5 {[%clk 0:00:41]}  Nxb5 {[%clk 0:00:03]} 31. axb5 {[%clk 0:00:42]}  Bd3 {[%clk 0:00:02]} 32. b6 {[%clk 0:00:41]}  Ba6 {[%clk 0:00:03]} 33. Kg2 {[%clk 0:00:32]}  g4 {[%clk 0:00:03]} 34. f3 {[%clk 0:00:30]}  f5 {[%clk 0:00:02]} 35. h3 {[%clk 0:00:28]}  h5 {[%clk 0:00:02]} 36. fxg4 {[%clk 0:00:19]}  fxg4 {[%clk 0:00:02]} 37. h4 {[%clk 0:00:20]}  Ke8 {[%clk 0:00:02]} 38. Kf2 {[%clk 0:00:20]}  Kd7 {[%clk 0:00:03]} 39. Ke1 {[%clk 0:00:14]}  Kc6 {[%clk 0:00:03]} 40. Kd2 {[%clk 0:00:14]}  Kb5 {[%clk 0:00:03]} 41. Kc3 {[%clk 0:00:13]}  a4 {[%clk 0:00:02]} 42. Kd3 {[%clk 0:00:05]}  Kc6+ {[%clk 0:00:01]} 43. Kc3 {[%clk 0:00:05]}  Kb5 {[%clk 0:00:02]} 44. Kd3 {[%clk 0:00:05]}  Bb7 {[%clk 0:00:02]} 45. Kc3 {[%clk 0:00:04]}  Bc6 {[%clk 0:00:02]} 46. Kd3 {[%clk 0:00:04]}  Ka6 {[%clk 0:00:02]} 47. Kc3 {[%clk 0:00:04]}  Ka5 {[%clk 0:00:03]} 48. Bb4+ {[%clk 0:00:04]}  Kxb6 {[%clk 0:00:03]} 49. Bc5+ {[%clk 0:00:05]}  Kb5 {[%clk 0:00:03]} 50. Kb2 {[%clk 0:00:05]}  Kc4 {[%clk 0:00:03]} 51. Bd6 {[%clk 0:00:05]}  Kd3 {[%clk 0:00:03]} 52. Bf4 {[%clk 0:00:05]}  Bb5 {[%clk 0:00:02]} 53. Ka3 {[%clk 0:00:06]}  Kc3 {[%clk 0:00:01]} 54. Be5 {[%clk 0:00:05]}  Be8 {[%clk 0:00:02]} 55. Bf4 {[%clk 0:00:05]}  Kc4 {[%clk 0:00:02]} 56. Be5 {[%clk 0:00:06]}  Kd3 {[%clk 0:00:02]} 57. Bf4 {[%clk 0:00:06]}  Kd2 {[%clk 0:00:03]} 58. Kb4 {[%clk 0:00:04]}  Kc2 {[%clk 0:00:03]} 59. Ka3 {[%clk 0:00:04]}  Kc3 {[%clk 0:00:03]} 60. Bg5 {[%clk 0:00:05]}  Kd3 {[%clk 0:00:03]} 61. Bf4 {[%clk 0:00:05]}  Ke4 {[%clk 0:00:03]} 62. Kb4 {[%clk 0:00:05]}  Bd7 {[%clk 0:00:02]} 63. Ka3 {[%clk 0:00:05]}  Kf3 {[%clk 0:00:03]} 64. Kb4 {[%clk 0:00:05]}  Kg2 {[%clk 0:00:03]} 65. Ka3 {[%clk 0:00:06]}  Kf3 {[%clk 0:00:04]} 66. Kb4 {[%clk 0:00:06]}  Ke4 {[%clk 0:00:04]} 67. Ka3 {[%clk 0:00:07]}  Bc6 {[%clk 0:00:04]} 68. Kb4 {[%clk 0:00:07]}  Kd3 {[%clk 0:00:05]} 69. Ka3 {[%clk 0:00:07]}  Kc3 {[%clk 0:00:05]} 70. Bg5 {[%clk 0:00:07]}  Bb5 {[%clk 0:00:05]} 71. Bf4 {[%clk 0:00:07]}  Be8 {[%clk 0:00:04]} 72. Bg5 {[%clk 0:00:08]}  Kc4 {[%clk 0:00:05]} 73. Bf4 {[%clk 0:00:08]}  Kb5 {[%clk 0:00:06]} 74. Bg5 {[%clk 0:00:08]}  Bg6 {[%clk 0:00:07]} 75. Bf4 {[%clk 0:00:08]}  Be4 {[%clk 0:00:08]} 76. Bg5 {[%clk 0:00:08]}  Bd3 {[%clk 0:00:09]} 77. Bf4 {[%clk 0:00:09]}  Bc4 {[%clk 0:00:10]} 78. Bg5 {[%clk 0:00:09]}  Bd3 {[%clk 0:00:10]} 79. Bf4 {[%clk 0:00:10]}  Bc2 {[%clk 0:00:11]} 80. Bg5 {[%clk 0:00:10]}  Kc4 {[%clk 0:00:12]} 81. Bf4 {[%clk 0:00:10]}  Bb3 {[%clk 0:00:12]} 82. Bg5 {[%clk 0:00:11]}  Kd3 {[%clk 0:00:13]} 83. Bf4 {[%clk 0:00:11]}  Ke4 {[%clk 0:00:11]} 84. Kb4 {[%clk 0:00:11]}  Kd3 {[%clk 0:00:11]} 85. Ka3 {[%clk 0:00:11]}  Kc3 {[%clk 0:00:12]} 86. Bg5 {[%clk 0:00:12]}  Kc2 {[%clk 0:00:10]} 87. Bf4 {[%clk 0:00:12]}  Kc1 {[%clk 0:00:10]} 88. Bg5 {[%clk 0:00:12]}  Kd1 {[%clk 0:00:06]} 89. Bf4 {[%clk 0:00:11]}  Ke2 {[%clk 0:00:07]} 90. Kb4 {[%clk 0:00:10]}  Kf3 {[%clk 0:00:08]} 91. Ka3 {[%clk 0:00:10]}  Bd1 {[%clk 0:00:08]} 92. Kb4 {[%clk 0:00:10]}  Ke4 {[%clk 0:00:08]} 93. Ka3 {[%clk 0:00:10]}  Kf5 {[%clk 0:00:06]} 94. Kb4 {[%clk 0:00:10]} 1/2-1/2


[Site "https://www.chess.com"]

[Event "Titled Tuesday Blitz May 31 Early 2022"]
[White "Royal, Shreyas"]
[Black "Macovei, Andrei"]
[WhiteFideId "448869"]
[BlackFideId "13904680"]
[WhiteElo "1986"]
[BlackElo "2472"]
[Result "1-0"]
[Round "08"]
[TimeControl "180+1"]
[Date "2022.05.31"]
[WhiteClock "0:00:25"]
[BlackClock "0:00:05"]

1. d4 {[%clk 0:03:00]}  Nf6 {[%clk 0:02:59]} 2. c4 {[%clk 0:02:59]}  e6 {[%clk 0:03:00]} 3. Nf3 {[%clk 0:02:58]}  d5 {[%clk 0:02:59]} 4. g3 {[%clk 0:02:58]}  Be7 {[%clk 0:02:59]} 5. Bg2 {[%clk 0:02:58]}  O-O {[%clk 0:03:00]} 6. O-O {[%clk 0:02:59]}  dxc4 {[%clk 0:03:00]} 7. Qc2 {[%clk 0:02:59]}  a6 {[%clk 0:02:59]} 8. a4 {[%clk 0:02:59]}  c5 {[%clk 0:03:00]} 9. Rd1 {[%clk 0:02:54]}  Nc6 {[%clk 0:02:51]} 10. Na3 {[%clk 0:02:40]}  b5 {[%clk 0:02:45]} 11. dxc5 {[%clk 0:02:36]}  Qa5 {[%clk 0:02:19]} 12. axb5 {[%clk 0:02:20]}  axb5 {[%clk 0:02:20]} 13. Bd2 {[%clk 0:02:20]}  Nb4 {[%clk 0:02:14]} 14. Bxb4 {[%clk 0:01:58]}  Qxb4 {[%clk 0:02:15]} 15. Ne5 {[%clk 0:01:59]}  Ra6 {[%clk 0:02:07]} 16. Nc6 {[%clk 0:01:51]}  Qxc5 {[%clk 0:02:06]} 17. Nxe7+ {[%clk 0:01:52]}  Qxe7 {[%clk 0:02:06]} 18. Nxb5 {[%clk 0:01:52]}  Rxa1 {[%clk 0:01:53]} 19. Rxa1 {[%clk 0:01:51]}  Qc5 {[%clk 0:01:53]} 20. Nc3 {[%clk 0:01:44]}  Bd7 {[%clk 0:01:50]} 21. Ne4 {[%clk 0:01:31]}  Nxe4 {[%clk 0:01:46]} 22. Bxe4 {[%clk 0:01:32]}  h6 {[%clk 0:01:44]} 23. Rc1 {[%clk 0:01:22]}  Rc8 {[%clk 0:01:39]} 24. Qc3 {[%clk 0:01:11]}  Qb6 {[%clk 0:01:28]} 25. Rd1 {[%clk 0:01:09]}  Ba4 {[%clk 0:01:25]} 26. Bc2 {[%clk 0:01:03]}  Bxc2 {[%clk 0:01:11]} 27. Qxc2 {[%clk 0:01:04]}  Qb4 {[%clk 0:01:10]} 28. Qc3 {[%clk 0:01:00]}  Rb8 {[%clk 0:01:04]} 29. Rd8+ {[%clk 0:00:53]}  Kh7 {[%clk 0:01:03]} 30. Qc2+ {[%clk 0:00:44]}  g6 {[%clk 0:00:58]} 31. Rd7 {[%clk 0:00:42]}  Rb7 {[%clk 0:00:56]} 32. Rxb7 {[%clk 0:00:40]}  Qxb7 {[%clk 0:00:57]} 33. Qxc4 {[%clk 0:00:41]}  Qxb2 {[%clk 0:00:57]} 34. Kg2 {[%clk 0:00:39]}  g5 {[%clk 0:00:52]} 35. Qe4+ {[%clk 0:00:35]}  Kg7 {[%clk 0:00:52]} 36. h4 {[%clk 0:00:34]}  Qf6 {[%clk 0:00:51]} 37. hxg5 {[%clk 0:00:34]}  Qxg5 {[%clk 0:00:52]} 38. f4 {[%clk 0:00:32]}  Qg4 {[%clk 0:00:52]} 39. Qe5+ {[%clk 0:00:31]}  Kg6 {[%clk 0:00:51]} 40. Kf2 {[%clk 0:00:29]}  h5 {[%clk 0:00:50]} 41. Qh8 {[%clk 0:00:28]}  f6 {[%clk 0:00:45]} 42. Qg8+ {[%clk 0:00:28]}  Kf5 {[%clk 0:00:45]} 43. Qh7+ {[%clk 0:00:25]}  Qg6 {[%clk 0:00:06]} 44. Qd7 {[%clk 0:00:25]}  Kg4 {[%clk 0:00:05]} 45. Qxe6+ {[%clk 0:00:25]}  f5 {[%clk 0:00:05]} 46. Qxg6+ {[%clk 0:00:25]}  Kh3 {[%clk 0:00:05]} 47. Qxh5# {[%clk 0:00:25]} 1-0


[Site "https://www.chess.com"]

[Event "Titled Tuesday Blitz May 31 Early 2022"]
[White "Barria Santos, Jose Guilherme"]
[Black "Ciuffoletti, Paolo"]
[WhiteFideId "1939300"]
[BlackFideId "807630"]
[WhiteElo "2261"]
[BlackElo "2143"]
[Result "1-0"]
[Round "08"]
[TimeControl "180+1"]
[Date "2022.06.01"]
[WhiteClock "0:00:04"]
[BlackClock "0:00:01"]

1. d4 {[%clk 0:02:36]}  d5 {[%clk 0:02:56]} 2. Bf4 {[%clk 0:02:32]}  Nf6 {[%clk 0:02:55]} 3. e3 {[%clk 0:02:32]}  c5 {[%clk 0:02:55]} 4. c3 {[%clk 0:02:32]}  Nc6 {[%clk 0:02:55]} 5. Nd2 {[%clk 0:02:30]}  g6 {[%clk 0:02:55]} 6. Be2 {[%clk 0:02:27]}  Bg7 {[%clk 0:02:55]} 7. h4 {[%clk 0:02:27]}  h5 {[%clk 0:02:48]} 8. Ngf3 {[%clk 0:02:24]}  Ng4 {[%clk 0:02:39]} 9. O-O {[%clk 0:02:19]}  e5 {[%clk 0:02:31]} 10. dxe5 {[%clk 0:02:20]}  Ncxe5 {[%clk 0:02:31]} 11. Nxe5 {[%clk 0:02:20]}  Nxe5 {[%clk 0:02:31]} 12. Nf3 {[%clk 0:02:20]}  Ng4 {[%clk 0:02:22]} 13. Bb5+ {[%clk 0:02:09]}  Kf8 {[%clk 0:02:17]} 14. Bg3 {[%clk 0:01:38]}  Bf6 {[%clk 0:02:08]} 15. Qe2 {[%clk 0:01:30]}  Be6 {[%clk 0:01:58]} 16. Rad1 {[%clk 0:01:29]}  Qb6 {[%clk 0:01:48]} 17. Bd3 {[%clk 0:01:23]}  Kg7 {[%clk 0:01:45]} 18. Ng5 {[%clk 0:01:16]}  Rhe8 {[%clk 0:01:22]} 19. a4 {[%clk 0:01:10]}  Nh6 {[%clk 0:01:04]} 20. e4 {[%clk 0:01:00]}  Bg4 {[%clk 0:00:55]} 21. f3 {[%clk 0:00:57]}  c4+ {[%clk 0:00:54]} 22. Bf2 {[%clk 0:00:42]}  cxd3 {[%clk 0:00:52]} 23. Qxd3 {[%clk 0:00:43]}  Qc7 {[%clk 0:00:44]} 24. fxg4 {[%clk 0:00:29]}  Nxg4 {[%clk 0:00:43]} 25. Bg3 {[%clk 0:00:29]}  Qc5+ {[%clk 0:00:41]} 26. Kh1 {[%clk 0:00:30]}  Bxg5 {[%clk 0:00:40]} 27. hxg5 {[%clk 0:00:28]}  h4 {[%clk 0:00:39]} 28. Qf3 {[%clk 0:00:23]}  Qe7 {[%clk 0:00:29]} 29. Qxg4 {[%clk 0:00:18]}  hxg3 {[%clk 0:00:29]} 30. Qxg3 {[%clk 0:00:16]}  Rh8+ {[%clk 0:00:26]} 31. Kg1 {[%clk 0:00:17]}  Rh5 {[%clk 0:00:25]} 32. Rxd5 {[%clk 0:00:16]}  Rah8 {[%clk 0:00:24]} 33. Qe5+ {[%clk 0:00:16]}  Qxe5 {[%clk 0:00:24]} 34. Rxe5 {[%clk 0:00:17]}  Rh1+ {[%clk 0:00:21]} 35. Kf2 {[%clk 0:00:17]}  Rxf1+ {[%clk 0:00:21]} 36. Kxf1 {[%clk 0:00:18]}  Rh1+ {[%clk 0:00:20]} 37. Kf2 {[%clk 0:00:19]}  Rc1 {[%clk 0:00:19]} 38. Rb5 {[%clk 0:00:19]}  b6 {[%clk 0:00:19]} 39. Kf3 {[%clk 0:00:16]}  Rc2 {[%clk 0:00:18]} 40. g4 {[%clk 0:00:15]}  Rc1 {[%clk 0:00:16]} 41. a5 {[%clk 0:00:15]}  bxa5 {[%clk 0:00:13]} 42. Rxa5 {[%clk 0:00:16]}  Rc2 {[%clk 0:00:12]} 43. Rb5 {[%clk 0:00:14]}  Rh2 {[%clk 0:00:10]} 44. c4 {[%clk 0:00:13]}  Rc2 {[%clk 0:00:09]} 45. c5 {[%clk 0:00:12]}  a6 {[%clk 0:00:07]} 46. Ra5 {[%clk 0:00:05]}  Rxb2 {[%clk 0:00:07]} 47. Rxa6 {[%clk 0:00:05]}  Rc2 {[%clk 0:00:07]} 48. Rc6 {[%clk 0:00:06]}  Rc4 {[%clk 0:00:07]} 49. Kf4 {[%clk 0:00:06]}  Rc1 {[%clk 0:00:06]} 50. Rc7 {[%clk 0:00:06]}  Rc2 {[%clk 0:00:06]} 51. c6 {[%clk 0:00:06]}  Rc1 {[%clk 0:00:06]} 52. Rc8 {[%clk 0:00:06]}  Rc2 {[%clk 0:00:05]} 53. c7 {[%clk 0:00:07]}  Rc1 {[%clk 0:00:04]} 54. Ke5 {[%clk 0:00:06]}  Rc2 {[%clk 0:00:02]} 55. Kd6 {[%clk 0:00:05]}  Rd2+ {[%clk 0:00:02]} 56. Ke7 {[%clk 0:00:05]}  Rc2 {[%clk 0:00:01]} 57. e5 {[%clk 0:00:06]}  Rc3 {[%clk 0:00:01]} 58. e6 {[%clk 0:00:04]} 1-0


[Site "https://www.chess.com"]

[Event "Titled Tuesday Blitz May 31 Early 2022"]
[White "Svane, Frederik"]
[Black "Eljanov, Pavel"]
[WhiteFideId "12923044"]
[BlackFideId "14102951"]
[WhiteElo "2459"]
[BlackElo "2601"]
[Result "0-1"]
[Round "08"]
[TimeControl "180+1"]
[Date "2022.05.31"]
[WhiteClock "0:00:19"]
[BlackClock "0:00:05"]

1. e4 {[%clk 0:03:00]}  c6 {[%clk 0:03:00]} 2. d4 {[%clk 0:03:00]}  d5 {[%clk 0:03:00]} 3. exd5 {[%clk 0:03:01]}  cxd5 {[%clk 0:03:01]} 4. Nf3 {[%clk 0:03:02]}  Nc6 {[%clk 0:02:59]} 5. c3 {[%clk 0:03:02]}  Bf5 {[%clk 0:02:39]} 6. Qb3 {[%clk 0:03:02]}  Qd7 {[%clk 0:02:38]} 7. Nh4 {[%clk 0:03:03]}  g6 {[%clk 0:02:31]} 8. Nxf5 {[%clk 0:03:00]}  gxf5 {[%clk 0:02:32]} 9. Bf4 {[%clk 0:03:01]}  e6 {[%clk 0:02:27]} 10. Nd2 {[%clk 0:03:01]}  Bd6 {[%clk 0:02:21]} 11. Bxd6 {[%clk 0:02:58]}  Qxd6 {[%clk 0:02:22]} 12. Nf3 {[%clk 0:02:54]}  Nf6 {[%clk 0:02:20]} 13. Bd3 {[%clk 0:02:42]}  Ne4 {[%clk 0:02:15]} 14. g3 {[%clk 0:02:33]}  O-O-O {[%clk 0:02:05]} 15. Qc2 {[%clk 0:02:31]}  Kb8 {[%clk 0:02:02]} 16. O-O-O {[%clk 0:02:31]}  Nb4 {[%clk 0:01:55]} 17. Qe2 {[%clk 0:02:26]}  Rc8 {[%clk 0:01:48]} 18. Kb1 {[%clk 0:02:23]}  Nxd3 {[%clk 0:01:32]} 19. Rxd3 {[%clk 0:02:24]}  f6 {[%clk 0:01:24]} 20. Ne1 {[%clk 0:02:14]}  Qd7 {[%clk 0:01:14]} 21. f3 {[%clk 0:02:07]}  Nd6 {[%clk 0:01:14]} 22. Nc2 {[%clk 0:02:03]}  Rhe8 {[%clk 0:01:12]} 23. Ne3 {[%clk 0:01:57]}  h5 {[%clk 0:00:56]} 24. Rd2 {[%clk 0:01:55]}  h4 {[%clk 0:00:55]} 25. Re1 {[%clk 0:01:48]}  hxg3 {[%clk 0:00:53]} 26. hxg3 {[%clk 0:01:49]}  Rg8 {[%clk 0:00:49]} 27. Qf2 {[%clk 0:01:46]}  Rce8 {[%clk 0:00:48]} 28. Rde2 {[%clk 0:01:44]}  a6 {[%clk 0:00:42]} 29. g4 {[%clk 0:01:41]}  Qh7 {[%clk 0:00:30]} 30. Qh2 {[%clk 0:01:33]}  Qxh2 {[%clk 0:00:28]} 31. Rxh2 {[%clk 0:01:34]}  f4 {[%clk 0:00:17]} 32. Ng2 {[%clk 0:01:31]}  e5 {[%clk 0:00:18]} 33. Rh6 {[%clk 0:01:30]}  e4 {[%clk 0:00:18]} 34. fxe4 {[%clk 0:01:28]}  f3 {[%clk 0:00:17]} 35. Nh4 {[%clk 0:01:03]}  Nxe4 {[%clk 0:00:17]} 36. Kc2 {[%clk 0:00:59]}  f2 {[%clk 0:00:18]} 37. Rf1 {[%clk 0:00:58]}  Rxg4 {[%clk 0:00:18]} 38. Nf5 {[%clk 0:00:55]}  Rg1 {[%clk 0:00:17]} 39. Ne3 {[%clk 0:00:55]}  Ng3 {[%clk 0:00:12]} 40. Rxf2 {[%clk 0:00:50]}  Rxe3 {[%clk 0:00:12]} 41. Rhxf6 {[%clk 0:00:51]}  Ne4 {[%clk 0:00:12]} 42. Rf8+ {[%clk 0:00:52]}  Ka7 {[%clk 0:00:13]} 43. Rh2 {[%clk 0:00:52]}  Reg3 {[%clk 0:00:10]} 44. Rf5 {[%clk 0:00:42]}  R3g2+ {[%clk 0:00:10]} 45. Rxg2 {[%clk 0:00:42]}  Rxg2+ {[%clk 0:00:10]} 46. Kc1 {[%clk 0:00:43]}  Rg5 {[%clk 0:00:10]} 47. Rf7 {[%clk 0:00:36]}  a5 {[%clk 0:00:10]} 48. Rd7 {[%clk 0:00:35]}  a4 {[%clk 0:00:09]} 49. Kc2 {[%clk 0:00:32]}  Ka6 {[%clk 0:00:08]} 50. Rd8 {[%clk 0:00:31]}  Rg2+ {[%clk 0:00:06]} 51. Kc1 {[%clk 0:00:30]}  Rg5 {[%clk 0:00:06]} 52. Rd7 {[%clk 0:00:28]}  b6 {[%clk 0:00:06]} 53. Rd8 {[%clk 0:00:28]}  Kb5 {[%clk 0:00:06]} 54. Kc2 {[%clk 0:00:26]}  Rg2+ {[%clk 0:00:05]} 55. Kd1 {[%clk 0:00:21]}  Kc4 {[%clk 0:00:05]} 56. b3+ {[%clk 0:00:19]}  Kd3 {[%clk 0:00:05]} 57. Ke1 {[%clk 0:00:19]}  Rg1# {[%clk 0:00:05]} 0-1


[Site "https://www.chess.com"]

[Event "Titled Tuesday Blitz May 31 Early 2022"]
[White "Taboas Rodriguez, Daniel"]
[Black "Liyanage, Ranindu Dilshan"]
[WhiteFideId "2208466"]
[BlackFideId "9915834"]
[WhiteElo "2429"]
[BlackElo "1858"]
[Result "1-0"]
[Round "08"]
[TimeControl "180+1"]
[Date "2022.06.01"]
[WhiteClock "0:00:24"]
[BlackClock "0:00:03"]

1. d4 {[%clk 0:03:00]}  Nf6 {[%clk 0:02:59]} 2. Nf3 {[%clk 0:03:00]}  e6 {[%clk 0:03:00]} 3. c4 {[%clk 0:03:01]}  d5 {[%clk 0:03:00]} 4. Bg5 {[%clk 0:03:01]}  Nbd7 {[%clk 0:02:55]} 5. e3 {[%clk 0:03:00]}  Be7 {[%clk 0:02:54]} 6. Nc3 {[%clk 0:03:00]}  h6 {[%clk 0:02:53]} 7. Bh4 {[%clk 0:03:00]}  O-O {[%clk 0:02:52]} 8. Rc1 {[%clk 0:02:58]}  c5 {[%clk 0:02:52]} 9. dxc5 {[%clk 0:02:57]}  Nxc5 {[%clk 0:02:40]} 10. cxd5 {[%clk 0:02:56]}  g5 {[%clk 0:02:40]} 11. Bg3 {[%clk 0:02:55]}  exd5 {[%clk 0:02:39]} 12. Be2 {[%clk 0:02:55]}  Be6 {[%clk 0:02:37]} 13. O-O {[%clk 0:02:55]}  Rc8 {[%clk 0:02:37]} 14. Nd4 {[%clk 0:02:54]}  Nfe4 {[%clk 0:02:30]} 15. Bg4 {[%clk 0:02:33]}  f5 {[%clk 0:02:20]} 16. Nxe6 {[%clk 0:02:24]}  Nxe6 {[%clk 0:02:13]} 17. Bf3 {[%clk 0:02:18]}  Rc5 {[%clk 0:01:23]} 18. Be5 {[%clk 0:02:15]}  Bf6 {[%clk 0:01:17]} 19. Bxf6 {[%clk 0:02:11]}  Qxf6 {[%clk 0:01:18]} 20. Nxd5 {[%clk 0:02:09]}  Qxb2 {[%clk 0:01:10]} 21. Bxe4 {[%clk 0:02:05]}  Rxc1 {[%clk 0:00:53]} 22. Qxc1 {[%clk 0:02:03]}  Qxc1 {[%clk 0:00:53]} 23. Rxc1 {[%clk 0:02:04]}  fxe4 {[%clk 0:00:53]} 24. g4 {[%clk 0:01:57]}  b6 {[%clk 0:00:33]} 25. Rc6 {[%clk 0:01:55]}  Kf7 {[%clk 0:00:24]} 26. Nc3 {[%clk 0:01:43]}  Nc5 {[%clk 0:00:21]} 27. Rxh6 {[%clk 0:01:43]}  Rd8 {[%clk 0:00:20]} 28. Rh7+ {[%clk 0:01:40]}  Kg6 {[%clk 0:00:20]} 29. Rxa7 {[%clk 0:01:41]}  Rd3 {[%clk 0:00:19]} 30. Nb5 {[%clk 0:01:34]}  Rd1+ {[%clk 0:00:17]} 31. Kg2 {[%clk 0:01:33]}  Rd2 {[%clk 0:00:18]} 32. Kg3 {[%clk 0:01:24]}  Nd3 {[%clk 0:00:16]} 33. Rd7 {[%clk 0:01:23]}  Rd1 {[%clk 0:00:14]} 34. Rd6+ {[%clk 0:01:11]}  Kg7 {[%clk 0:00:12]} 35. Kg2 {[%clk 0:01:03]}  Rd2 {[%clk 0:00:11]} 36. Kg1 {[%clk 0:00:55]}  Rd1+ {[%clk 0:00:11]} 37. Kg2 {[%clk 0:00:55]}  Rd2 {[%clk 0:00:12]} 38. a4 {[%clk 0:00:52]}  Rxf2+ {[%clk 0:00:11]} 39. Kg1 {[%clk 0:00:52]}  Ra2 {[%clk 0:00:07]} 40. Rxb6 {[%clk 0:00:51]}  Rxa4 {[%clk 0:00:07]} 41. Nc3 {[%clk 0:00:49]}  Ra1+ {[%clk 0:00:06]} 42. Kg2 {[%clk 0:00:48]}  Re1 {[%clk 0:00:07]} 43. Nxe4 {[%clk 0:00:48]}  Rxe3 {[%clk 0:00:06]} 44. Nxg5 {[%clk 0:00:48]}  Re2+ {[%clk 0:00:06]} 45. Kg3 {[%clk 0:00:47]}  Ne1 {[%clk 0:00:06]} 46. h4 {[%clk 0:00:46]}  Nd3 {[%clk 0:00:06]} 47. Rb7+ {[%clk 0:00:44]}  Kf6 {[%clk 0:00:05]} 48. Rb6+ {[%clk 0:00:43]}  Kg7 {[%clk 0:00:05]} 49. h5 {[%clk 0:00:43]}  Re3+ {[%clk 0:00:05]} 50. Kh4 {[%clk 0:00:42]}  Nf2 {[%clk 0:00:05]} 51. Rb7+ {[%clk 0:00:38]}  Kg8 {[%clk 0:00:04]} 52. h6 {[%clk 0:00:37]}  Re1 {[%clk 0:00:02]} 53. Rg7+ {[%clk 0:00:36]}  Kf8 {[%clk 0:00:02]} 54. Nh7+ {[%clk 0:00:36]}  Ke8 {[%clk 0:00:03]} 55. Nf6+ {[%clk 0:00:36]}  Kd8 {[%clk 0:00:02]} 56. h7 {[%clk 0:00:35]}  Rh1+ {[%clk 0:00:02]} 57. Kg3 {[%clk 0:00:35]}  Nd3 {[%clk 0:00:02]} 58. Rg8+ {[%clk 0:00:33]}  Ke7 {[%clk 0:00:03]} 59. h8=Q {[%clk 0:00:34]}  Rxh8 {[%clk 0:00:03]} 60. Rxh8 {[%clk 0:00:35]}  Kxf6 {[%clk 0:00:04]} 61. Rh5 {[%clk 0:00:35]}  Kg7 {[%clk 0:00:05]} 62. Rd5 {[%clk 0:00:34]}  Nb4 {[%clk 0:00:05]} 63. Rd6 {[%clk 0:00:33]}  Nc2 {[%clk 0:00:05]} 64. Kf2 {[%clk 0:00:32]}  Nb4 {[%clk 0:00:05]} 65. Ke3 {[%clk 0:00:31]}  Na2 {[%clk 0:00:05]} 66. Rc6 {[%clk 0:00:30]}  Nb4 {[%clk 0:00:05]} 67. Rc5 {[%clk 0:00:28]}  Na6 {[%clk 0:00:05]} 68. Rc6 {[%clk 0:00:28]}  Nb4 {[%clk 0:00:05]} 69. Rc7+ {[%clk 0:00:28]}  Kg6 {[%clk 0:00:05]} 70. Rc5 {[%clk 0:00:24]}  Na6 {[%clk 0:00:03]} 71. Rc6+ {[%clk 0:00:24]} 1-0


[Site "https://www.chess.com"]

[Event "Titled Tuesday Blitz May 31 Early 2022"]
[White "Vidit, Santosh Gujrathi"]
[Black "Vasquez Schroeder, Rodrigo"]
[WhiteFideId "5029465"]
[BlackFideId "3400042"]
[WhiteElo "2654"]
[BlackElo "2567"]
[Result "1-0"]
[Round "08"]
[TimeControl "180+1"]
[Date "2022.05.31"]
[WhiteClock "0:01:09"]
[BlackClock "0:00:54"]

1. e4 {[%clk 0:03:00]}  c5 {[%clk 0:03:00]} 2. Nf3 {[%clk 0:03:01]}  d6 {[%clk 0:03:00]} 3. d4 {[%clk 0:03:01]}  cxd4 {[%clk 0:03:01]} 4. Nxd4 {[%clk 0:03:02]}  Nf6 {[%clk 0:03:01]} 5. Nc3 {[%clk 0:03:03]}  Nc6 {[%clk 0:03:02]} 6. Bg5 {[%clk 0:03:03]}  e6 {[%clk 0:03:02]} 7. Qd2 {[%clk 0:03:03]}  a6 {[%clk 0:03:02]} 8. O-O-O {[%clk 0:03:03]}  Bd7 {[%clk 0:03:02]} 9. f3 {[%clk 0:03:02]}  Be7 {[%clk 0:02:59]} 10. h4 {[%clk 0:03:02]}  b5 {[%clk 0:02:57]} 11. Nxc6 {[%clk 0:02:59]}  Bxc6 {[%clk 0:02:57]} 12. Bd3 {[%clk 0:03:00]}  h6 {[%clk 0:02:41]} 13. Be3 {[%clk 0:03:00]}  h5 {[%clk 0:02:35]} 14. Bg5 {[%clk 0:03:00]}  Qb6 {[%clk 0:02:32]} 15. Kb1 {[%clk 0:02:59]}  O-O-O {[%clk 0:02:31]} 16. Rhe1 {[%clk 0:02:56]}  Kb8 {[%clk 0:02:31]} 17. a3 {[%clk 0:02:47]}  Qb7 {[%clk 0:02:28]} 18. Na2 {[%clk 0:02:46]}  Qc7 {[%clk 0:02:10]} 19. Bf1 {[%clk 0:02:45]}  Bb7 {[%clk 0:02:08]} 20. Re3 {[%clk 0:02:45]}  Rc8 {[%clk 0:02:08]} 21. Rc3 {[%clk 0:02:45]}  Qd7 {[%clk 0:02:08]} 22. Nb4 {[%clk 0:02:39]}  Rxc3 {[%clk 0:02:08]} 23. Qxc3 {[%clk 0:02:40]}  Rc8 {[%clk 0:02:08]} 24. Qd4 {[%clk 0:02:38]}  Qc7 {[%clk 0:02:03]} 25. Be3 {[%clk 0:02:37]}  Qc5 {[%clk 0:02:03]} 26. Qd2 {[%clk 0:02:32]}  Qc7 {[%clk 0:02:03]} 27. Bg5 {[%clk 0:02:14]}  Rd8 {[%clk 0:01:59]} 28. Re1 {[%clk 0:02:12]}  Rc8 {[%clk 0:01:54]} 29. Rc1 {[%clk 0:02:12]}  Qb6 {[%clk 0:01:52]} 30. Be3 {[%clk 0:02:10]}  Qc7 {[%clk 0:01:51]} 31. c4 {[%clk 0:01:59]}  a5 {[%clk 0:01:39]} 32. Na2 {[%clk 0:01:59]}  bxc4 {[%clk 0:01:29]} 33. Bxc4 {[%clk 0:01:44]}  Nd7 {[%clk 0:01:04]} 34. Bxe6 {[%clk 0:01:39]}  Qd8 {[%clk 0:01:03]} 35. Bxd7 {[%clk 0:01:36]}  Qxd7 {[%clk 0:01:02]} 36. Qxa5 {[%clk 0:01:34]}  Rxc1+ {[%clk 0:01:01]} 37. Kxc1 {[%clk 0:01:32]}  d5 {[%clk 0:00:59]} 38. exd5 {[%clk 0:01:26]}  Bxd5 {[%clk 0:00:58]} 39. Nc3 {[%clk 0:01:25]}  Bc6 {[%clk 0:00:57]} 40. Qxh5 {[%clk 0:01:19]}  Qd3 {[%clk 0:00:55]} 41. Qe5+ {[%clk 0:01:13]}  Bd6 {[%clk 0:00:55]} 42. Qd4 {[%clk 0:01:12]}  Qf1+ {[%clk 0:00:54]} 43. Qd1 {[%clk 0:01:09]} 1-0


[Site "https://www.chess.com"]